bitfinex/quotes_ETHUSD_20240916
["timestamp","ask_amount","ask_price","bid_price","bid_amount"]
[1726493389041,2.2535,2309.4,2309.1,4.33066]
[1726493389571,2.2535,2309.4,2309.1,8.66125]
[1726493389769,0.08649878,2309.3,2309.1,4.33059]
[1726493390270,2.2535,2309.4,2309.2,4.33042]
[1726493391280,2.2535,2309.4,2309.2,4.33041]
[1726493391489,2.2535,2309.4,2309.2,4.3304]
[1726493394875,2.2535,2309.4,2309.1,4.33068]
[1726493397506,2.2535,2309.4,2309.2,4.33047]
[1726493398198,2.2535,2309.4,2309.1,4.33068]
[1726493398407,2.33999878,2309.4,2309.1,8.66125]
[1726493399068,2.2535,2309.4,2309.2,4.33047]
[1726493399675,4.78309935,2309.6,2309.4,4.33006]
[1726493399676,2.93031935,2309.6,2309.4,4.33006]
[1726493399998,2.93031935,2309.6,2309.3,8.66042]
[1726493400204,2.93031935,2309.6,2309.3,4.33021]
[1726493400404,2.93031935,2309.6,2309.5,8.65988]
[1726493400405,0.45331935,2309.6,2309.5,8.65988]
[1726493400605,2.477,2309.8,2309.5,4.32993]
[1726493400901,2.4824,2309.4,2308.6,2.4524]
[1726493401104,2.4824,2309.4,2309.2,4.33038]
[1726493401319,2.4824,2309.4,2309.3,8.66062]
[1726493401602,2.72415049,2309.8,2309.2,4.33041]
[1726493401603,2.4824,2309.6,2309.2,4.33041]
[1726493401762,3.87762293,2309.6,2309.3,4.3303]
[1726493401963,2.4824,2309.6,2309.3,4.3302]
[1726493402193,2.4824,2309.6,2309.4,4.32996]
[1726493402419,2.76202969,2309.9,2309.7,4.32956]
[1726493402420,0.0378792,2309.9,2309.7,4.32956]
[1726493402705,0.0378792,2309.9,2309.8,12.98811]
[1726493402998,0.0378792,2309.9,2309.8,13.07469216]
[1726493403205,0.0378792,2309.9,2309.8,15.03304869]
[1726493403373,0.0378792,2309.9,2309.8,17.43044869]
[1726493404003,0.0378792,2309.9,2309.8,17.34386653]
[1726493404324,0.0378792,2309.9,2309.8,8.65874]
[1726493404891,0.0378792,2309.9,2309.5,4.32986]
[1726493404892,0.0378792,2309.9,2309.7,4.32942]
[1726493405203,0.0378792,2309.9,2309.8,4.32937]
[1726493405407,2.2706,2309.8,2309.5,4.3298]
[1726493405617,2.2706,2309.6,2309.1,4.33054]
[1726493405785,0.08649878,2309.5,2309.3,4.3302]
[1726493406491,0.08649878,2309.5,2309.2,4.33035]
[1726493406880,2.35709878,2309.6,2309.2,8.66074]
[1726493407101,0.25014479,2309.5,2309.2,8.66074]
[1726493407385,2.4741,2309.3,2308.7,4.22347314]
[1726493407598,2.4741,2309.3,2308.6,2.3702]
[1726493407599,2.39,2309.1,2308.8,4.33113]
[1726493407781,2.39,2308.9,2308.5,4.3318]
[1726493407977,2.39,2308.9,2308.6,4.33162]
[1726493408277,2.47649878,2308.9,2308.6,4.3315]
[1726493408479,2.39,2308.9,2308.6,4.3315]
[1726493408681,2.63764988,2308.9,2308.6,4.3315]
[1726493410015,2.39,2308.9,2308.6,4.3315]
[1726493410827,2.39,2308.9,2308.8,4.33125]
[1726493411009,2.39,2308.9,2308.6,4.3315]
[1726493411516,2.4864,2309.1,2309.0,4.33087]
[1726493411703,2.4864,2309.1,2308.8,4.33125]
[1726493411704,2.4864,2309.1,2308.9,4.331]
[1726493412126,2.4864,2309.1,2309.0,4.33087]
[1726493412629,2.4864,2309.1,2308.8,4.33115]
[1726493412919,2.4864,2309.1,2308.9,4.33088]
[1726493413119,2.4864,2309.1,2309.0,4.33087]
[1726493413329,2.4864,2309.1,2308.9,4.33088]
[1726493413630,2.82153878,2309.1,2308.3,6.66287314]
[1726493413926,2.82153878,2309.1,2308.9,4.33105]
[1726493413927,2.4864,2309.1,2308.9,4.33105]
[1726493414282,2.4864,2309.1,2308.9,4.33096]
[1726493414486,2.4864,2309.1,2309.0,8.66174]
[1726493414711,2.4048,2309.3,2309.1,4.33059]
[1726493414918,2.4048,2309.3,2308.9,4.331]
[1726493414919,2.72981448,2309.3,2308.9,4.331]
[1726493415122,0.33562866,2309.2,2308.8,4.33113]
[1726493415423,2.4048,2309.1,2308.9,4.33096]
[1726493415631,2.4048,2309.1,2308.5,6.53977314]
[1726493415782,0.08649878,2309.0,2308.5,4.33179]
[1726493416123,6.73769,2308.9,2308.4,4.33189]
[1726493416358,0.76891766,2308.8,2308.5,4.33179]
[1726493416559,0.08649878,2308.7,2308.5,4.33179]
[1726493416757,0.08649878,2308.8,2308.5,4.33179]
[1726493416962,0.08649878,2308.8,2308.5,4.3317]
[1726493417170,2.4066,2308.9,2308.7,4.33144]
[1726493417333,2.4066,2309.1,2308.8,4.33121]
[1726493417660,2.4066,2309.1,2308.9,4.33097]
[1726493417832,2.4066,2309.1,2308.8,4.33112]
[1726493418034,3.38894088,2309.1,2308.9,0.03796093]
[1726493418341,0.08649878,2309.0,2308.9,0.03796093]
[1726493418517,3.38894088,2309.1,2308.9,4.36901093]
[1726493418722,2.49309878,2309.1,2308.9,0.03796093]
[1726493419319,6.79717,2309.0,2308.5,4.33172]
[1726493419543,2.4662,2308.8,2308.2,4.33223]
[1726493419742,2.4662,2308.6,2308.0,8.66523]
[1726493420041,2.3726,2308.4,2308.2,4.33236]
[1726493420233,2.3726,2308.4,2308.0,4.33258]
[1726493420428,0.08649878,2308.3,2308.0,4.33258]
[1726493420630,2.3726,2308.4,2308.0,4.33258]
[1726493420631,2.3726,2308.4,2308.2,4.33228]
[1726493420857,2.3726,2308.7,2308.5,4.33181]
[1726493421168,2.3726,2308.7,2308.5,4.33171]
[1726493421741,2.3726,2308.7,2308.6,4.33162]
[1726493422047,2.3887,2308.9,2308.7,4.33141]
[1726493422232,2.3887,2308.9,2308.5,5.18720831]
[1726493422422,2.3887,2308.9,2308.6,4.33146]
[1726493422620,2.3887,2308.9,2308.7,4.33142]
[1726493422862,2.3887,2308.9,2308.7,8.66268]
[1726493423055,0.45314297,2309.2,2308.7,8.66268]
[1726493423056,0.45314297,2309.2,2309.1,4.33069]
[1726493424056,0.45314297,2309.2,2309.1,8.66138]
[1726493424275,0.45314297,2309.2,2309.1,4.33069]
[1726493424962,0.45314297,2309.2,2308.9,4.33097]
[1726493425166,2.3013,2309.0,2308.7,4.33143]
[1726493425330,0.32527866,2308.9,2308.5,4.33164]
[1726493425651,0.32527866,2308.9,2308.3,8.66415]
[1726493425852,5.3013,2308.8,2308.3,4.33206]
[1726493426176,0.08649878,2308.7,2308.3,4.33206]
[1726493426871,2.4113,2308.6,2308.1,4.33242]
[1726493427169,0.76942266,2308.5,2308.1,8.66484]
[1726493427513,0.76942266,2308.5,2308.2,4.33232]
[1726493427776,0.08649878,2308.5,2308.2,4.33232]
[1726493429960,0.08649878,2308.5,2308.1,4.33242]
[1726493430528,4.41831878,2308.5,2308.0,4.33268]
[1726493430729,6.67689,2308.3,2307.8,4.33312]
[1726493430953,6.67689,2308.3,2307.7,4.3332]
[1726493430954,0.08649878,2308.2,2307.7,4.3332]
[1726493431168,3.86113385,2308.2,2307.7,8.66638]
[1726493431474,0.08649878,2308.2,2307.8,4.33297]
[1726493431923,2.2703,2308.1,2307.8,4.33297]
[1726493432128,0.08649878,2308.0,2307.8,4.33297]
[1726493432430,0.98296188,2308.4,2307.4,6.63805]
[1726493432431,3.43656188,2308.4,2308.1,4.33247]
[1726493432639,3.43656188,2308.4,2308.1,0.866522]
[1726493432640,0.08649878,2308.3,2308.1,0.866522]
[1726493432936,0.08649878,2308.3,2308.0,8.66529]
[1726493433161,0.08649878,2308.3,2308.0,4.33264]
[1726493433483,0.08649878,2308.3,2307.5,4.33366]
[1726493433484,7.20239412,2308.2,2307.5,4.33366]
[1726493433635,0.08649878,2308.1,2307.8,4.33311]
[1726493433956,0.08649878,2308.1,2307.9,4.33284]
[1726493434157,0.08649878,2308.1,2307.7,4.33319]
[1726493434471,0.08649878,2308.1,2307.8,4.33311]
[1726493434671,0.08649878,2308.1,2307.8,4.37163765]
[1726493435068,2.9564029,2308.2,2307.9,4.3328]
[1726493435274,0.08649878,2308.1,2307.9,8.66563]
[1726493435583,2.86990412,2308.2,2308.0,0.03852765]
[1726493435778,2.70984029,2308.1,2308.0,0.03852765]
[1726493435969,2.70984029,2308.1,2307.7,4.33322]
[1726493436172,2.4142,2308.1,2308.0,0.03852765]
[1726493436371,2.4142,2308.1,2307.6,4.33349]
[1726493436372,6.74679,2308.1,2307.6,4.33349]
[1726493436676,6.60084,2307.8,2307.3,4.33393]
[1726493436981,6.60084,2307.8,2307.2,0.0378792]
[1726493436982,2.2676,2307.5,2307.2,0.0378792]
[1726493437386,5.2676,2307.5,2307.2,0.0378792]
[1726493437585,4.33407,2307.3,2307.2,0.0378792]
[1726493437795,6.90197878,2307.4,2307.2,0.0378792]
[1726493438113,8.32554066,2307.4,2307.2,0.0378792]
[1726493438298,4.33407,2307.3,2307.2,0.0378792]
[1726493438505,2.53849878,2307.3,2307.2,0.0378792]
[1726493438838,27.74568878,2307.3,2307.2,0.0378792]
[1726493439117,31.25038278,2307.3,2307.2,0.0378792]
[1726493439480,16.83307478,2307.3,2307.2,0.0378792]
[1726493440455,21.16714478,2307.3,2307.2,0.0378792]
[1726493440710,16.83307478,2307.3,2307.2,0.0378792]
[1726493441099,21.16714478,2307.3,2307.2,0.0378792]
[1726493442494,16.83307478,2307.3,2307.2,0.0378792]
[1726493442743,22.14041326,2307.3,2307.2,0.0378792]
[1726493442938,17.80634326,2307.3,2307.2,0.0378792]
[1726493443136,17.80634326,2307.3,2307.2,0.07860225]
[1726493443338,11.35557678,2307.3,2307.2,0.0378792]
[1726493443640,2.3123,2307.6,2307.2,0.07860225]
[1726493443856,0.75106078,2307.5,2307.2,0.07860225]
[1726493444028,4.33407,2307.3,2307.2,0.07860225]
[1726493444371,2.37609878,2307.3,2307.2,0.07860225]
[1726493444526,0.08649878,2307.3,2307.2,4.41285225]
[1726493445235,0.08649878,2307.4,2307.2,0.07860225]
[1726493445421,3.61545878,2307.4,2307.2,0.07860225]
[1726493445822,0.08649878,2307.4,2307.2,0.07860225]
[1726493446254,0.08649878,2307.4,2307.3,4.33407]
[1726493446469,0.08649878,2307.4,2307.3,0.04057215]
[1726493446684,0.08649878,2307.4,2307.2,0.0378792]
[1726493446977,4.42040878,2307.4,2307.3,0.04057215]
[1726493447181,0.32410866,2307.4,2307.3,0.04057215]
[1726493447342,0.32410866,2307.4,2307.2,0.0378792]
[1726493447677,0.08649878,2307.4,2307.3,0.04057215]
[1726493447878,0.08649878,2307.4,2307.2,4.3719892]
[1726493448033,0.08649878,2307.4,2307.3,0.04057215]
[1726493448242,0.08649878,2307.7,2307.3,0.44125614]
[1726493448477,0.08649878,2307.7,2307.4,0.04126958]
[1726493448855,0.45307286,2307.6,2307.4,0.04126958]
[1726493449057,0.08649878,2307.5,2307.4,0.04126958]
[1726493449364,12.68237878,2307.5,2307.4,0.04126958]
[1726493449545,7.20339794,2307.5,2307.4,0.04126958]
[1726493449741,7.20339794,2307.5,2307.2,0.0378792]
[1726493450240,7.20339794,2307.5,2307.3,0.04117529]
[1726493450440,7.20339794,2307.5,2307.2,0.0378792]
[1726493450637,7.20339794,2307.5,2307.3,0.04117529]
[1726493450955,14.16784,2307.3,2307.2,0.0378792]
[1726493451142,18.372114,2307.3,2307.2,0.0378792]
[1726493451344,5.4997,2307.3,2307.2,0.0378792]
[1726493451577,5.58619878,2307.3,2307.2,0.0378792]
[1726493452575,11.43944369,2307.3,2307.2,0.0378792]
[1726493453152,15.77351369,2307.3,2307.2,0.0378792]
[1726493453685,32.81725769,2307.3,2307.2,0.0378792]
[1726493453983,37.15132769,2307.3,2307.2,0.0378792]
[1726493454788,39.15132769,2307.3,2307.2,0.0378792]
[1726493455077,43.48539769,2307.3,2307.2,0.0378792]
[1726493456185,43.39889891,2307.3,2307.2,0.0378792]
[1726493456347,4.33538,2306.6,2306.5,0.0378792]
[1726493456688,13.95086,2306.6,2306.5,0.07901677]
[1726493457365,41.665364,2306.6,2306.5,0.0378792]
[1726493457685,43.18453891,2306.6,2306.5,0.0378792]
[1726493457892,4.3367,2305.9,2305.8,0.0378792]
[1726493458074,26.874444,2305.9,2305.8,0.0378792]
[1726493458249,5.58049878,2305.9,2305.8,0.0378792]
[1726493458586,9.91719878,2305.9,2305.8,0.07901677]
[1726493458800,9.91719878,2305.9,2305.8,0.0378792]
[1726493459086,7.42319878,2305.9,2305.8,0.07901677]
[1726493459245,7.42319878,2305.9,2305.8,0.0378792]
[1726493459452,16.98657478,2305.9,2305.8,0.0788735]
[1726493459675,4.3358,2306.4,2305.8,0.0788735]
[1726493459676,4.33601,2306.3,2305.8,0.0788735]
[1726493459884,3.08649878,2306.2,2305.8,0.31766085]
[1726493460086,0.08649878,2306.2,2305.8,4.61343655]
[1726493460298,3.0,2306.3,2305.9,5.07292277]
[1726493460299,0.08649878,2306.3,2305.9,5.07292277]
[1726493460595,0.08649878,2306.5,2305.9,0.73633277]
[1726493460762,0.08649878,2306.5,2306.1,8.67241]
[1726493460962,0.08649878,2306.5,2306.1,8.67242]
[1726493461173,0.08649878,2306.5,2306.1,6.7033]
[1726493461399,0.08649878,2306.5,2306.4,4.33576]
[1726493461587,2.4961,2307.2,2306.7,4.33502]
[1726493461892,2.4961,2307.2,2306.5,2.3671]
[1726493461893,0.08649878,2307.3,2306.5,9.53787262]
[1726493462101,0.08649878,2307.5,2307.1,6.66409]
[1726493462398,0.45307286,2307.6,2307.3,4.33394]
[1726493462698,0.45307286,2307.6,2307.4,0.04321135]
[1726493462884,0.45307286,2307.6,2307.2,8.66836]
[1726493462885,0.45307286,2307.6,2307.2,4.33412]
[1726493463389,0.45307286,2307.6,2307.4,4.33385]
[1726493463580,0.45307286,2307.6,2307.5,4.33369]
[1726493463777,0.45307286,2307.6,2307.5,9.53838911]
[1726493463980,0.45307286,2307.6,2307.5,8.7099217]
[1726493464477,0.45307286,2307.6,2307.5,11.1039217]
[1726493466073,0.45307286,2307.6,2307.5,6.7702317]
[1726493466805,0.45307286,2307.6,2307.5,0.0425417]
[1726493467220,8.21837893,2307.6,2307.5,0.0425417]
[1726493467372,0.53957164,2307.6,2307.4,4.33385]
[1726493467571,0.53957164,2307.6,2307.5,0.04197613]
[1726493467977,0.53957164,2307.6,2307.2,4.33413]
[1726493468174,0.53957164,2307.6,2307.5,0.04197613]
[1726493468684,14.77667064,2307.6,2307.1,4.33444]
[1726493468888,0.45307286,2307.6,2307.2,0.04197613]
[1726493469099,0.53957164,2307.6,2307.4,4.33386]
[1726493469304,0.53957164,2307.6,2307.5,4.33369]
[1726493469486,0.45307286,2307.6,2307.5,11.93760213]
[1726493469689,0.45307286,2307.6,2307.5,11.07085613]
[1726493470598,0.45307286,2307.6,2307.5,0.04197613]
[1726493470913,0.45307286,2307.6,2307.3,4.33402]
[1726493470914,0.45307286,2307.6,2307.2,2.4078]
[1726493471214,2.41279878,2307.5,2307.3,0.04001393]
[1726493471415,0.08649878,2307.5,2307.3,0.04001393]
[1726493471621,0.08649878,2307.5,2307.2,4.33413]
[1726493471820,0.08649878,2307.5,2307.4,0.04001393]
[1726493472003,0.08649878,2307.5,2307.2,4.33413]
[1726493472004,0.44045594,2307.5,2307.2,4.33413]
[1726493472332,0.44045594,2307.5,2307.0,4.33448]
[1726493472479,0.44045594,2307.5,2307.1,0.0398706]
[1726493472944,0.44045594,2307.5,2307.1,4.3741906]
[1726493473680,0.45307286,2307.6,2307.4,4.33373]
[1726493473834,0.45307286,2307.6,2307.5,8.66738]
[1726493474035,0.45307286,2307.6,2307.5,4.33369]
[1726493474352,0.45307286,2307.6,2307.5,0.0398706]
[1726493474870,0.45307286,2307.6,2307.5,8.7072506]
[1726493475075,0.45307286,2307.6,2307.5,9.80810566]
[1726493475573,0.45307286,2307.6,2307.5,8.7072506]
[1726493475932,0.45307286,2307.6,2307.5,4.3735606]
[1726493476451,0.45307286,2307.6,2307.5,8.7072506]
[1726493477781,0.45307286,2307.6,2307.5,13.0409406]
[1726493477980,0.08649878,2308.2,2307.5,13.0409406]
[1726493477981,0.08649878,2308.2,2308.0,4.33266]
[1726493478281,0.539538,2308.2,2308.0,8.66531]
[1726493478487,0.45303922,2308.2,2308.1,4.33256]
[1726493478847,0.45303922,2308.2,2308.1,4.3724306]
[1726493479458,0.45303922,2308.2,2308.1,0.0398706]
[1726493479648,0.45303922,2308.2,2308.1,4.3724306]
[1726493479876,0.45303922,2308.2,2308.1,11.0218906]
[1726493480075,0.45303922,2308.2,2308.1,12.55737166]
[1726493480260,0.45303922,2308.2,2308.1,11.0218906]
[1726493481000,0.45303922,2308.2,2308.1,15.3544506]
[1726493481149,0.0378792,2308.5,2308.1,15.3544506]
[1726493481150,0.0378792,2308.5,2308.4,8.664]
[1726493481490,0.0378792,2308.5,2308.4,13.0358706]
[1726493481786,0.0378792,2308.5,2308.4,16.78325766]
[1726493482558,0.0378792,2308.5,2308.4,21.11525766]
[1726493482761,0.0378792,2308.5,2308.4,24.11525766]
[1726493483878,0.0378792,2308.5,2308.4,19.78325766]
[1726493485187,0.0378792,2308.5,2308.4,16.78325766]
[1726493485682,0.0378792,2308.5,2308.4,24.11525766]
[1726493486044,0.0378792,2308.5,2308.4,19.78325766]
[1726493487449,0.0378792,2308.5,2308.4,24.11525766]
[1726493487652,0.0378792,2309.2,2308.4,24.11525766]
[1726493487653,0.0378792,2309.2,2309.1,12.99207]
[1726493487852,0.0378792,2309.2,2309.1,20.65848218]
[1726493488050,0.0378792,2309.2,2309.1,24.98917218]
[1726493488282,0.0378792,2309.2,2309.1,24.95107262]
[1726493488785,0.0378792,2309.2,2309.1,20.62038262]
[1726493488990,0.0378792,2309.2,2309.1,22.68242088]
[1726493489291,0.0378792,2309.2,2309.1,13.14931826]
[1726493490099,0.0378792,2309.2,2309.0,4.33071]
[1726493490462,0.0378792,2309.2,2309.1,4.33069]
[1726493490675,0.0378792,2309.2,2309.1,8.66138]
[1726493490960,0.0378792,2309.2,2309.1,5.196828]
[1726493491181,0.0378792,2309.2,2309.1,9.527518]
[1726493494892,0.0378792,2309.2,2309.1,28.66611062]
[1726493495276,0.0378792,2309.2,2309.1,32.99680062]
[1726493495481,0.0378792,2309.9,2309.8,15.39111]
[1726493495798,0.0378792,2309.9,2309.8,19.72048]
[1726493496101,0.0378792,2309.9,2309.8,22.72048]
[1726493496675,0.0378792,2309.9,2309.8,18.39111]
[1726493496895,0.0378792,2309.9,2309.8,11.06174]
[1726493497213,6.77548,2310.7,2310.1,4.32866]
[1726493497214,0.0433669,2310.2,2310.1,4.32866]
[1726493497360,0.0463214,2310.2,2310.1,4.32866]
[1726493497567,0.0463214,2310.2,2310.0,4.32897]
[1726493497761,0.0463214,2310.2,2310.1,4.32881]
[1726493498313,0.0463214,2310.2,2310.0,4.3289]
[1726493498617,0.0463214,2310.2,2310.1,8.65762]
[1726493499898,0.0463214,2310.2,2310.1,4.32881]
[1726493500098,0.0463214,2310.2,2310.1,8.65762]
[1726493500693,0.0463214,2310.2,2310.1,15.46313]
[1726493501226,0.0463214,2310.2,2310.1,11.13432]
[1726493501381,0.0463214,2310.2,2310.1,17.033489]
[1726493501583,0.0463214,2310.2,2310.1,24.362299]
[1726493501786,0.0463214,2310.2,2310.1,28.691109]
[1726493501983,0.0463214,2310.2,2310.1,24.362299]
[1726493502408,0.0463214,2310.2,2310.1,20.033489]
[1726493502617,0.0463214,2310.2,2310.1,10.227979]
[1726493503481,0.0463214,2310.2,2310.1,8.65762]
[1726493503688,0.0463214,2310.2,2310.1,4.32881]
[1726493504531,0.0463214,2310.2,2310.0,4.32889]
[1726493504700,0.0463214,2310.2,2309.9,0.2403]
[1726493504701,0.13282018,2310.2,2309.9,4.32914]
[1726493505118,0.13282018,2310.2,2309.8,4.32924]
[1726493505424,0.0463214,2310.2,2309.9,4.32915]
[1726493505588,0.13282018,2310.2,2309.8,4.32924]
[1726493506216,6.61222,2310.1,2309.6,4.32961]
[1726493506415,0.08649878,2310.0,2309.6,4.32961]
[1726493506583,0.08649878,2310.0,2309.3,4.33027]
[1726493506787,2.2834,2310.1,2309.8,4.32926]
[1726493506998,2.2834,2310.1,2309.5,4.32989]
[1726493507227,2.2834,2310.1,2309.9,4.3291]
[1726493507587,0.0463214,2310.2,2310.1,4.32881]
[1726493507818,0.0463214,2310.2,2310.1,8.65762]
[1726493508134,0.0463214,2310.2,2310.1,4.32881]
[1726493508983,2.2601,2310.1,2309.6,2.4008]
[1726493509222,0.08649878,2310.0,2309.6,4.32961]
[1726493509398,0.08649878,2310.0,2309.4,5.007267]
[1726493509399,4.32932,2309.9,2309.4,4.32997]
[1726493509597,6.68353878,2309.8,2309.3,4.3302]
[1726493509826,2.2676,2309.8,2309.6,4.32959]
[1726493509998,2.2676,2309.8,2309.6,4.762549]
[1726493510197,0.0029545,2309.8,2309.6,8.65923]
[1726493510426,0.0029545,2309.8,2309.4,4.32996]
[1726493510627,0.0029545,2309.8,2309.5,4.32992]
[1726493510839,0.0029545,2309.8,2309.0,2.4233]
[1726493510840,2.4985,2309.7,2309.0,2.4233]
[1726493511135,9.43797711,2309.6,2309.1,4.3306]
[1726493511332,9.43797711,2309.6,2309.0,4.33077]
[1726493511333,4.32994,2309.5,2309.0,4.33077]
[1726493511627,6.82864,2309.4,2308.8,4.33113]
[1726493511835,2.4985,2309.1,2308.7,4.33134]
[1726493511990,2.4985,2309.1,2308.8,4.33125]
[1726493512299,2.4985,2309.1,2308.7,5.430835]
[1726493512502,0.08649878,2309.0,2308.6,4.33151]
[1726493512933,0.08649878,2309.0,2308.4,4.33199]
[1726493513087,0.08649878,2309.0,2307.7,2.3315]
[1726493513088,4.33176,2308.6,2307.7,2.3315]
[1726493513296,0.08649878,2308.5,2308.1,4.33242]
[1726493513537,0.08649878,2308.6,2308.1,5.198944]
[1726493513834,6.82985,2308.8,2308.1,5.198944]
[1726493513835,0.08649878,2308.7,2308.1,4.33239]
[1726493514064,0.08649878,2308.7,2308.2,4.33227]
[1726493514209,0.08649878,2308.7,2308.1,4.33239]
[1726493514397,4.41805878,2308.7,2307.9,4.33284]
[1726493514600,4.33186,2308.5,2308.0,0.433284]
[1726493514799,4.33204,2308.4,2307.8,4.33308]
[1726493515012,2.4985,2308.6,2307.5,4.33354]
[1726493515013,6.83106,2308.1,2307.5,4.33354]
[1726493515240,0.08649878,2308.0,2307.5,4.33354]
[1726493515442,0.08649878,2308.0,2307.6,0.433354]
[1726493515853,0.08649878,2308.0,2307.6,4.766704]
[1726493516197,0.08649878,2308.0,2307.7,4.3333]
[1726493516425,2.4985,2308.1,2307.7,4.3333]
[1726493516635,2.4985,2308.1,2307.7,4.33319]
[1726493517217,2.4985,2308.1,2307.7,4.9049006]
[1726493517413,2.4985,2308.1,2307.7,9.2381006]
[1726493517629,2.4985,2308.1,2307.7,0.5717106]
[1726493517853,2.4985,2308.1,2307.5,4.33359]
[1726493518053,2.4985,2308.1,2307.2,3.0]
[1726493518054,2.4985,2308.1,2307.7,4.33321]
[1726493518431,2.4985,2308.1,2307.8,0.03798681]
[1726493518857,2.4985,2308.1,2307.7,8.66642]
[1726493519148,2.4985,2308.1,2307.1,7.57432502]
[1726493519149,0.08649878,2308.0,2307.9,0.0390885]
[1726493519353,0.08649878,2308.0,2307.3,4.33394]
[1726493519525,0.08649878,2308.0,2307.9,0.0390885]
[1726493519526,7.41924878,2308.0,2307.9,0.0390885]
[1726493519861,2.4494,2307.5,2307.1,4.3748224]
[1726493520159,2.53589878,2307.5,2307.2,0.03907908]
[1726493520314,2.53589878,2307.5,2307.1,0.0404124]
[1726493520670,2.4494,2307.5,2307.1,4.3747324]
[1726493520887,2.4494,2307.5,2307.3,4.33403]
[1726493521158,2.4494,2307.5,2307.2,0.03907908]
[1726493521313,3.08649878,2307.7,2307.1,0.0404124]
[1726493521314,8.6685,2307.2,2307.1,0.0404124]
[1726493521528,6.66725,2307.2,2307.1,0.0404124]
[1726493521718,6.75374878,2307.2,2307.1,0.0404124]
[1726493521952,2.41949878,2307.2,2307.1,0.0404124]
[1726493522340,2.333,2307.2,2307.1,0.0404124]
[1726493524556,5.3941,2307.6,2307.1,4.3748524]
[1726493524729,10.24755278,2307.6,2307.1,4.3748524]
[1726493525283,0.08649878,2307.5,2307.1,4.3747224]
[1726493525458,4.33388,2307.4,2307.1,0.0404124]
[1726493525618,11.1023,2307.2,2307.1,0.0404124]
[1726493525822,6.76805,2307.2,2307.1,0.0404124]
[1726493526022,12.29900078,2307.2,2307.1,0.0404124]
[1726493526225,19.63325078,2307.2,2307.1,0.0404124]
[1726493526841,19.63325078,2307.2,2306.3,0.0433669]
[1726493526842,6.69706,2306.4,2306.3,0.0433669]
[1726493527060,14.03282,2306.4,2306.3,0.0433669]
[1726493527279,15.436102,2306.4,2306.3,0.0433669]
[1726493527570,36.895732,2306.4,2306.3,0.0433669]
[1726493527734,36.895732,2306.4,2305.5,0.0433669]
[1726493527735,4.33726,2305.6,2305.5,0.0433669]
[1726493527943,6.73396,2305.6,2305.5,0.0433669]
[1726493528146,15.26482378,2305.6,2305.5,0.0433669]
[1726493528458,19.60208378,2305.6,2305.5,0.0433669]
[1726493528665,15.26482378,2305.6,2305.5,0.0433669]
[1726493529682,10.92756378,2305.6,2305.5,0.0433669]
[1726493530208,5.48319878,2305.6,2305.5,0.0433669]
[1726493530684,2.48319878,2305.6,2305.5,0.0433669]
[1726493531484,2.48319878,2305.6,2305.5,0.08296298]
[1726493531485,5.48319878,2305.6,2305.5,0.08296298]
[1726493531793,14.15771878,2305.6,2305.5,0.08296298]
[1726493531959,15.57349066,2305.6,2305.5,0.0433669]
[1726493534184,11.23623066,2305.6,2305.5,0.0433669]
[1726493534487,11.23623066,2305.6,2305.5,0.08445295]
[1726493534861,6.89897066,2305.6,2305.5,0.08445295]
[1726493535957,11.23623066,2305.6,2305.5,0.08445295]
[1726493536358,15.57349066,2305.6,2305.5,0.08445295]
[1726493536561,15.57349066,2305.6,2305.5,0.0433669]
[1726493536978,19.91075066,2305.6,2305.5,0.0433669]
[1726493537353,15.57349066,2305.6,2305.5,0.0433669]
[1726493537548,19.91075066,2305.6,2305.5,0.0433669]
[1726493537746,36.95449466,2305.6,2305.5,0.0433669]
[1726493538158,36.12604366,2305.6,2305.5,0.0433669]
[1726493538488,22.48794623,2305.6,2305.5,0.0433669]
[1726493538866,39.53169023,2305.6,2305.5,0.0433669]
[1726493539371,22.48794623,2305.6,2305.5,0.0433669]
[1726493539589,21.91075066,2305.6,2305.5,0.0433669]
[1726493539747,22.48795527,2305.6,2305.5,0.0433669]
[1726493539951,21.91075066,2305.6,2305.5,0.0433669]
[1726493540150,22.48796632,2305.6,2305.5,0.0433669]
[1726493541672,20.48796632,2305.6,2305.5,0.0433669]
[1726493541874,16.15070632,2305.6,2305.5,0.0433669]
[1726493542077,20.48796632,2305.6,2305.5,0.0433669]
[1726493542270,16.60398279,2305.6,2305.5,0.0433669]
[1726493542863,16.60398279,2305.6,2305.5,0.08438687]
[1726493543297,16.60398279,2305.6,2305.5,0.0433669]
[1726493543456,16.60398279,2305.6,2305.5,0.08452847]
[1726493543457,12.26672279,2305.6,2305.5,0.08452847]
[1726493543659,9.26672279,2305.6,2305.5,0.0433669]
[1726493544085,4.92946279,2305.6,2305.5,0.08452847]
[1726493544392,4.92946279,2305.6,2305.5,8.75942847]
[1726493544393,1.03049213,2305.6,2305.5,8.75942847]
[1726493544548,0.45327647,2305.6,2305.5,8.75942847]
[1726493544752,0.45327647,2305.6,2305.5,9.63537132]
[1726493545189,0.45327647,2305.6,2305.5,13.97282132]
[1726493545392,4.33483,2306.9,2305.5,13.97282132]
[1726493545393,0.08649878,2306.4,2305.7,4.33694]
[1726493545562,0.57797009,2306.3,2306.0,4.33641]
[1726493545890,0.45320873,2306.1,2306.0,8.67292]
[1726493546406,2.4234,2306.8,2306.2,4.33602]
[1726493546407,6.75842,2306.8,2306.2,4.33602]
[1726493546553,0.45318845,2306.5,2306.2,4.33602]
[1726493546874,0.66465013,2306.4,2306.1,4.33619]
[1726493547056,0.08649878,2306.4,2306.1,4.33619]
[1726493547389,0.57816497,2306.3,2306.2,4.33613]
[1726493547754,0.57816497,2306.3,2306.2,9.77989]
[1726493548076,0.45318845,2306.5,2306.4,8.67152]
[1726493548591,0.08649878,2307.2,2306.9,4.33476]
[1726493548790,2.4672,2307.5,2306.7,4.33512]
[1726493548791,0.57829404,2307.1,2306.7,4.33504]
[1726493548964,0.45317983,2306.9,2306.7,4.33504]
[1726493549167,0.45317983,2306.9,2306.8,4.335]
[1726493549955,1.03145059,2306.9,2306.8,8.67]
[1726493550265,2.4672,2307.5,2307.2,4.33419]
[1726493550266,0.08649878,2307.5,2307.2,4.33419]
[1726493550466,0.08649878,2307.7,2307.4,4.33388]
[1726493550799,0.08649878,2307.8,2307.6,4.33348]
[1726493550979,0.57849755,2307.7,2307.4,6.67784]
[1726493551179,0.57849755,2307.6,2307.4,6.67784]